Cogmind - Beta 15 @@@ ROGUE MODE // 2025.08.20 @ 17:08:55 Player: Tuja Result: Destroyed by as-50368 with Assembled Maul Performance ------------- Evolutions (0) 0 Regions Visited (2) 400 Robots Destroyed (8) 40 Value Destroyed (223) 223 Prototype IDs (0) 0 Alien Tech Used (0) 0 Bonus (0) 0 TOTAL SCORE: 663 Bonus ------- None Cogmind --------- Core Integrity 0/250 Matter 290/300 Energy 64/100 System Corruption 2% Temperature Cool (0) Movement Core (350) Ox6 Location -10/Mines Parts ------- > --- POWER (1) -------- (None) > --- PROPULSION (2) --- (None) > --- UTILITY (2) ------ Large Storage Unit > --- WEAPON (2) ------- (None) > --- INVENTORY (15) --- Ion Engine Aluminum Leg Compact Wheel Small Storage Unit Sensor Array Signal Interpreter Particle Gun Mining Laser Heavy Explosive Trap Heavy Explosive Trap Heavy Explosive Trap Peak State ------------ > --- POWER ------------ Ion Engine > --- PROPULSION ------- Wheel Wheel > --- UTILITY ---------- Small Storage Unit Targeting Computer > --- WEAPON ----------- Assault Rifle Light Assault Rifle > --- INVENTORY -------- Ion Engine Aluminum Leg Aluminum Leg EM Pulse Gun [Rating: 7] Favorites ----------- Power Ion Engine Engine Ion Engine Propulsion Wheel Wheel Wheel Utility Targeting Computer Storage Small Storage Unit Processor Targeting Computer Weapon Light Assault Rifle Energy Gun EM Pulse Gun Ballistic Gun Light Assault Rifle Launcher Grenade Launcher Impact Weapon Hammer Build | -11 -10 -10 ------- Run | Yrd Mat Min Slots Evolved . | . . . Power . | . . . Propulsion . | . . . Utility . | . . . Weapon . | . . . Parts Attached 13 | 6 4 3 Power 1 | 1 . . Engine 1 | 1 . . Core . | . . . Reactor . | . . . Propulsion 2 | 2 . . Treads . | . . . Leg . | . . . Wheel 2 | 2 . . Hover . | . . . Flight . | . . . Utility 3 | 1 1 1 Device . | . . . Storage 2 | 1 . 1 Processor 1 | . 1 . Hackware . | . . . Protection . | . . . Artifact . | . . . Weapon 7 | 2 3 2 Energy Gun 2 | . 1 1 Energy Cannon . | . . . Ballistic Gun 3 | 2 1 . Ballistic Cannon . | . . . Launcher 1 | . 1 . Special Weapon . | . . . Impact Weapon 1 | . . 1 Slashing Weapon . | . . . Piercing Weapon . | . . . Special Melee Weapon . | . . . Unidentified Prototypes . | . . . Parts Lost 9 | . 2 7 Power 1 | . . 1 Propulsion 2 | . . 2 Utility 1 | . . 1 Weapon 5 | . 2 3 Highest Loss Streak 7 | . 2 7 To Critical Strikes . | . . . Average Backups 7 | 1 6 9 Power . | . 1 1 Propulsion 1 | . 1 1 Utility 1 | . 1 3 Weapon 3 | . 2 3 Tool/Special . | . . . Unused Backups 8 | . 2 6 Power 1 | . . 1 Propulsion 3 | . 1 2 Utility 2 | . . 2 Weapon 2 | . 1 1 Tool/Special . | . . . Average Slot Usage (%) 89 | . 97 83 Engine 13 | . 14 13 Wheel 27 | . 28 26 Storage 14 | . 14 14 Processor 13 | . 13 13 Energy Gun 2 | . 4 . Ballistic Gun 17 | . 21 13 Peak Build Rating 7 | 6 7 7 Average Rating 6 | 4 6 6 On Entrance 4 | . 6 6 Naked Turns . | . . . Heaviest Build 26 | 13 14 26 Greatest Support 20 | 20 20 20 Greatest Overweight (x) 2 | . . 2 Average Overweight (x) . | . . . Largest Inventory Capacity 15 | 8 8 15 Average Capacity 11 | 7 8 14 Most Carried 13 | 4 8 13 Average Carried 9 | 2 6 12 Final Capacity 15 | 8 8 15 Final Carried 11 | 4 8 11 Class Distribution -------------------- 100% | Mutant Dominant Class ---------------- Mutant | -10/Materials Mutant | -10/Mines Resources | -11 -10 -10 ----------- Run | Yrd Mat Min Matter Collected 411 | 250 151 10 Remotely . | . . . Salvage Created 268 | . 254 14 Parts 19 | . 19 . Haulers Intercepted . | . . . Recyclers Shooed . | . . . Parts Field Recycled . | . . . Retrieved Matter . | . . . Parts Self-Destructed . | . . . Prevented . | . . . Kills | -11 -10 -10 ------- Run | Yrd Mat Min Combat Hostiles Destroyed 9 | . 8 1 Melee 1 | . . 1 Guns 8 | . 8 . Classes Destroyed 3 | . 2 1 Swarmer 3 | . 3 . Grunt 5 | . 5 . Assembled 1 | . . 1 Best Kill Streak 3 | . 3 1 Combat Bots Only 3 | . 3 1 Max Kills in Single Turn 1 | . 1 1 Gunslinging . | . . . Exploded . | . . . Melee 1 | . . 1 Uniques/NPCs Destroyed . | . . . Combat | -11 -10 -10 -------- Run | Yrd Mat Min Hostile Shots Fired 78 | . 41 37 Missed 22 | . 13 9 Hits 56 | . 28 28 Melee 10 | . . 10 Projectile 46 | . 28 18 Part Disruptions 1 | . . 1 Damage Taken 838 | . 303 535 Core 254 | . 34 220 Absorbed by Shields . | . . . Core Remaining (%) 100 | 100 . . Volleys Fired 32 | . 30 2 Largest 2 | . 2 2 Hottest 85 | . 60 85 Shots Fired 54 | . 51 3 Gun 53 | . 50 3 Cannon . | . . . Launcher 1 | . 1 . Special . | . . . Kinetic 48 | . 47 1 Thermal 2 | . . 2 Explosive 1 | . 1 . Electromagnetic 3 | . 3 . Robot Hit Streak 11 | . 11 2 Robot Miss Streak 3 | . 3 1 Penetration Max . | . . . Secondary Targets . | . . . Shots Hit Robots 36 | . 32 4 Core Hits 16 | . 14 2 Critical Kills 1 | . . 1 Critical Parts Destroyed . | . . . Critical Strikes 1 | . . 1 Smash 1 | . . 1 Melee Attacks 3 | . . 3 Impact 3 | . . 3 Slashing . | . . . Piercing . | . . . Sneak Attacks . | . . . Combat Hostiles . | . . . Follow-up Attacks . | . . . Damage Inflicted 408 | . 341 67 Guns 369 | . 341 28 Cannons . | . . . Explosions . | . . . Melee 39 | . . 39 Ramming . | . . . Kinetic 316 | . 316 . Thermal 28 | . . 28 Explosive . | . . . Electromagnetic 25 | . 25 . Impact 39 | . . 39 Slashing . | . . . Piercing . | . . . Highest Corruption . | . . . Average Corruption . | . . . Corruption Purged . | . . . Corruption Blocked . | . . . Overload Shots . | . . . Overflow Damage . | . . . Projectiles . | . . . Explosions . | . . . Melee . | . . . Knockbacks . | . . . Impact . | . . . Kinetic . | . . . Secondary . | . . . Self-Inflicted Damage . | . . . Shots . | . . . Rammed . | . . . Targets Rammed . | . . . Kicked . | . . . Crushed . | . . . Highest Temperature 43 | . 33 43 Average Temperature 18 | . 13 30 Received Heat Transfer 189 | . 129 60 Siege Activations . | . . . Martial Activations . | . . . Shielding Activations . | . . . Robots Disrupted . | . . . Combat Hostiles . | . . . Robots Corrupted . | . . . Combat Hostiles . | . . . Parts Fried . | . . . Impact Corruptions . | . . . Robots Melted . | . . . Combat Hostiles . | . . . Parts Melted . | . . . Heat Transferred 74 | . . 74 Parts Sabotaged . | . . . Parts Stolen . | . . . Parts Stripped . | . . . Power Chain Reactions . | . . . Alert | -11 -10 -10 ------- Run | Yrd Mat Min Maximum Alert Level . | . . . Low Security (%) 100 | 100 100 100 Level 1 . | . . . Level 2 . | . . . Level 3 . | . . . Level 4 . | . . . Level 5 . | . . . High Security . | . . . Max Security . | . . . Peak Influence 115 | . 115 44 Initial 44 | . . 44 Average 29 | . 63 6 Influence Increases 255 | . 255 . Destroy 0b10 Robot/C 160 | . 160 . Destroy Leader 30 | . 30 . Successful Hack 6 | . 6 . Disable Machine 15 | . 15 . Destroy Structure 14 | . 14 . Lose Combat Pursuer 30 | . 30 . Influence Decreases 255 | . 140 115 Entered New Map 71 | . . 71 Time Decay 164 | . 120 44 Lost Part 20 | . 20 . Squads Dispatched 2 | . 2 . Investigation 1 | . 1 . Extermination . | . . . Reinforcement 1 | . 1 . Assault . | . . . Garrison . | . . . Intercept . | . . . Searches Triggered . | . . . Construction Impeded . | . . . Haulers Reinforced . | . . . Active Scanning Responses . | . . . Cargo Convoy Interrupts . | . . . Stealth | -11 -10 -10 --------- Run | Yrd Mat Min Distress Signals . | . . . Communications Jammed . | . . . Distress Signals . | . . . Times Spotted 29 | . 14 15 Peak Tracking Total 16 | . 4 16 Tactical Retreats 3 | . 2 1 Traps | -11 -10 -10 ------- Run | Yrd Mat Min Traps Triggered 1 | . 1 . Indirectly . | . . . Trap Hack Attempts . | . . . Triggered . | . . . Disarmed . | . . . Reprogrammed . | . . . Reused . | . . . Traps Extracted . | . . . Installed . | . . . Triggered . | . . . Most Traps Carried 3 | . . 3 Machines | -11 -10 -10 ---------- Run | Yrd Mat Min Machines Disabled 1 | . 1 . Max in Single Turn 1 | . 1 . Machines Repaired . | . . . Machines Dismantled . | . . . Machines Sabotaged . | . . . Overloaded Fab Kills . | . . . Hacking | -11 -10 -10 --------- Run | Yrd Mat Min Machines Accessed 3 | . 3 . Terminals 3 | . 3 . Fabricators . | . . . Repair Stations . | . . . Recycling Units . | . . . Scanalyzers . | . . . Garrison Access . | . . . Total Hacks 7 | . 7 . Successful 2 | . 2 . Failed 5 | . 5 . Catastrophic . | . . . Database Lockouts . | . . . Manual 4 | . 4 . Terminals 7 | . 7 . Fabricators . | . . . Repair Stations . | . . . Recycling Units . | . . . Scanalyzers . | . . . Garrison Access . | . . . Terminal Hacks 1 | . 1 . Branch Access Points 1 | . 1 . Fabricator Hacks . | . . . Repair Station Hacks . | . . . Recycling Unit Hacks . | . . . Scanalyzer . | . . . Garrison Access Hacks . | . . . Unauthorized Hacks 1 | . 1 . Terminals 1 | . 1 . Botnet 1 | . 1 . Fabricators . | . . . Repair Stations . | . . . Recycling Units . | . . . Scanalyzers . | . . . Garrison Access . | . . . Data Cores Recovered . | . . . Used . | . . . Hacking Detections 3 | . 3 . Full Trace Events . | . . . Feedback Events . | . . . Feedback Blocked . | . . . Robot Schematics Acquired . | . . . Robots Built . | . . . Authchips . | . . . Time . | . . . Total Robot Build Rating . | . . . Part Schematics Acquired . | . . . Parts Built . | . . . Authchips . | . . . Time . | . . . Total Part Build Rating . | . . . Parts Repaired . | . . . Time . | . . . Parts Recycled . | . . . Recycled Matter . | . . . Retrieved Matter . | . . . Retrieved Components . | . . . Parts Scanalyzed . | . . . Part Schematics Acquired . | . . . Parts Damaged . | . . . Bothacking | -11 -10 -10 ------------ Run | Yrd Mat Min Used RIF Installer . | . . . Robots Hacked . | . . . Non-combat . | . . . Combat . | . . . Robot Hacks Applied . | . . . Relay Couplers Released . | . . . Fabnet Peak Effective % . | . . . Robots Rewired . | . . . Allies Hacked . | . . . Hacks Repelled . | . . . Allies | -11 -10 -10 -------- Run | Yrd Mat Min Total Allies . | . . . Largest Group . | . . . Highest-Rated Group . | . . . Highest-Rated Ally . | . . . Total Orders . | . . . Ally Attacks . | . . . Total Damage . | . . . Kills . | . . . Allies Corrupted . | . . . Allies Melted . | . . . Intel | -11 -10 -10 ------- Run | Yrd Mat Min Active Infowar (turns) . | . . . Robot Analysis Total . | . . . Derelict Logs Recovered 2 | . . 2 Drone Launches . | . . . Drone Recoveries . | . . . Exploration | -11 -10 -10 ------------- Run | Yrd Mat Min Turns Passed 679 | 49 278 352 Spaces Moved 614 | 47 218 349 Core 3 | 3 . . Treads . | . . . Legs . | . . . Wheels 611 | 44 218 349 Hover . | . . . Flight . | . . . Fastest Speed 50 | 50 80 80 Average Speed 87 | 78 80 94 Slowest Speed 110 | 80 80 110 Overloaded Moves . | . . . Propulsion Burnouts . | . . . Robots Hopped . | . . . Potential Cave-ins . | . . . Cave-ins Triggered . | . . . Exploration Rate (%) 44 | 3 51 78 Regions Visited 2 Branch Regions 1 Pre-discovered Areas 1 | . . 1 Known Exits Taken 1 | . 1 . Unknown Exits Taken 1 | 1 . . Scrap Searched 2 | . . 2 Spaces Dug . | . . . Terrain Destroyed 13 | . 13 . Melee . | . . . Projectile . | . . . AOE 13 | . 13 . Terrain Rammed . | . . . Walls Destroyed . | . . . Machines Disabled . | . . . Actions | -11 -10 -10 --------- Run | Yrd Mat Min Total 696 | 56 274 366 Wait 14 | . 11 3 Move 612 | 46 217 349 Hop . | . . . Pick Up 17 | 4 8 5 Fast Attach 7 | 6 1 . Attach 3 | . 1 2 Detach . | . . . Swap 5 | . 3 2 Drop 3 | . 3 . Fire 32 | . 30 2 Melee 3 | . . 3 Ram . | . . . Kick . | . . . Crush . | . . . Escape Stasis . | . . . Rewire . | . . . Trap . | . . . Miscellaneous . | . . . Route ------- -11/Scrapyard -10/Materials (discovered 3 exits: [*Mat] / *Min x2) -10/Mines (discovered 1 exit: [*Mat]) History --------- Turn | Location | Event 15 | -11/Scrapyard | Discovered new exit (range 16) 50 | -11/Scrapyard | Entered Materials 168 | -10/Materials | Identified exit to Mines 245 | -10/Materials | Discovered new exit (range 6) 301 | -10/Materials | Build established: Mutant 328 | -10/Materials | Entered Mines 348 | -10/Mines | Found a hidden stash of uninstalled traps 399 | -10/Mines | Discovered new exit (range 14) 413 | -10/Mines | Learned 2 Materials zone layouts 443 | -10/Mines | Learned location of Zion (-7) 641 | -10/Mines | Assembled infested the area 673 | -10/Mines | Core integrity fell below 50% 677 | -10/Mines | Core integrity fell below 20% 680 | -10/Mines | Destroyed by as-50368 with Assembled Maul Last Messages --------------- 00516_ K-01 Serf collects debris. 00598_ Searching scrap... 00598_ Found 53 Matter. 00598_ Found 41 Matter. 00598_ Found Ion Engine. 00598_ Found Heat Sink. 00598_ Found 51 Matter. 00641_ ALERT: Infestation in the mines, dispatching Demolisher response squad. 00664_ Wheel destroyed. 00664_ Ion Engine destroyed. 00670_ Lgt. Assault Rifle destroyed. 00671_ Targeting Computer destroyed. 00671_ Wheel destroyed. 00674_ as-98606 suffers critical hit (Smash). 00674_ as-98606 destroyed. 00675_ Grenade Launcher destroyed. 00680_ Hammer destroyed. 00680_ System corrupted by crushing effect (+2). [Achievement: Back For More] Map ----- +----------------------------------------------------+ | ????### ##??## #? | | ??????## ###???# #? | | ???????# ##?????## ##? | | ???????# #???????### #?? | | ???????## ##?????????## ##? | | ?????????###???????????## ## | | ????????????????????????# # | | ????????????????????????## | | ????????????????????????## | | ?????????????????????#### | | ????????????????????## | | ????????????????????# | | ????????????????????# ## | | ????????????????????# ##? | | ????????????????????## #?? | | ?????????????????????### #?? | | ???????????????????????## #?? | | ????????????????????????## #?? | | ????????????????????###### #?? | | ????????????????????# #?? | | ????????????????????# #### #?? | | ????????????????????# #??# #?? | | ??????????########### #??# #?? | | ??????????# #??# ?? | | ???#####??# ######### #?? ? | | ???# a@#### ##??????# #?? | | ??# aaa #??????# #?? | | ??# a aa #???# #?? | | ??# aa #? #??##### | | ??## ### ???????# | | ???### a ##??# ?????? | | ?????######????# ??????? | | ????????????????# ??????? | | ?????????????????## ??????? | | ???????????????????# ??????? | | ????????????????????# ???????? | | ?????????????????????# ???????? | | ??????????????????????#???????? | | ??????????????????????????????? | | ??????????????????????????????? | | ??????????????????????????????? | | ??????????????????????????????? | | | | | | | | | | | | | | | | | +----------------------------------------------------+ Best States ------------- Heat Dissipation 25 Energy Generation 10 Energy Capacity 250 Matter Stores 300 Matter Capacity 300 Sight Range 16 Terrain Scan Density 10 Evasion (%) 44 Targeting Accuracy 5 Item Schematics ----------------- None Robot Schematics ------------------ None Fabricated ------------ Nothing Repaired ---------- Nothing Alien Tech Used ----------------- None Achievements -------------- Back For More Challenges ------------ None Game ------ Seed LargeBurstTendrils Manual? 0 Play Time 00:09:53 Cumulative 90.0 hours Start 2025.08.20 @ 17:01:36 End 2025.08.20 @ 17:08:55 Sessions 1 Manual Loads 0 Difficulty Rogue Special Mode None Game No. 50 Rogue 45 Adventurer 5 Explorer 0 Win Type - Total 2 Types 1/0/1/0/0/0/0/0/0/0 Lore% 53 Gallery% 46 Achievement% 43 Wizard Run 0 Options --------- Layout 1 ASCII 0 Keyboard 0 Movement Numpad Keybinds 1 Fullscreen 1 Font 24/Smallcaps Map View 50x35 Zoom Use 0% Tactical HUD 1 Map Filters NONE Filters NONE Steam 1 RUN: faeabd11-3236-4957-924c-2a72255de93f